fUSD/lending_fUSD_20240105
["ID","MTS","AMOUNT","RATE_DAILY","PERIOD"]
[310289456,1704463873677,-308.73538162,0.0003041,2]
[310289457,1704463873686,-1043.98,0.0003041,2]
[310289458,1704463873696,-500.0,0.0003041,2]
[310289459,1704463873706,-827.77,0.0003041,2]
[310289460,1704463873716,-500.0,0.0003041,2]
[310289461,1704463873726,-500.0,0.0003041,2]
[310289462,1704463873736,-670.86,0.0003041,2]
[310289463,1704463873745,-500.0,0.0003041,2]
[310289464,1704463873754,-552.27,0.0003041,2]
[310289465,1704463873765,-510.1876889,0.0003041,2]
[310289466,1704463873774,-500.0,0.0003041,2]
[310289467,1704463873784,-2031.67,0.0003041,2]
[310289468,1704463873793,-500.0,0.0003041,2]
[310289469,1704463873802,-500.0,0.0003041,2]
[310289470,1704463873812,-500.0,0.0003041,2]
[310289471,1704463873822,-737.13,0.0003041,2]
[310289472,1704463873832,-577.56378034,0.0003041,2]
[310289473,1704463873843,-7439.39,0.0003041,2]
[310289474,1704463873852,-593.61,0.0003041,2]
[310289475,1704463873861,-973.07,0.0003041,2]
[310289476,1704463873870,-500.0,0.0003041,2]
[310289477,1704463873879,-563.27,0.0003041,2]
[310289478,1704463873889,-500.0,0.0003041,2]
[310289479,1704463873898,-585.98,0.0003041,2]
[310289480,1704463873909,-878.72,0.0003041,2]
[310289481,1704463873920,-500.0,0.0003041,2]
[310289482,1704463873930,-500.0,0.0003041,2]
[310289483,1704463873941,-500.0,0.0003041,2]
[310289484,1704463873951,-1022.6,0.0003041,2]
[310289485,1704463873960,-500.0,0.0003041,2]
[310289486,1704463873970,-500.0,0.0003041,2]
[310289487,1704463873979,-1959.09,0.0003041,2]
[310289488,1704463873989,-500.0,0.0003041,2]
[310289489,1704463873998,-502.26257304,0.0003041,2]
[310289490,1704463874007,-732.57,0.0003041,2]
[310289491,1704463874017,-11053.17,0.0003041,2]
[310289492,1704463874026,-503.85454807,0.0003041,2]
[310289493,1704463874035,-500.0,0.0003041,2]
[310289494,1704463874044,-500.0,0.0003041,2]
[310289495,1704463874054,-757.66,0.0003041,2]
[310289496,1704463874063,-500.0,0.0003041,2]
[310289497,1704463874072,-500.0,0.0003041,2]
[310289498,1704463874081,-511.54,0.0003041,2]
[310289499,1704463874090,-500.0,0.0003041,2]
[310289500,1704463874099,-500.0,0.0003041,2]
[310289501,1704463874109,-518.00463287,0.0003041,2]
[310289502,1704463874118,-556.63684511,0.0003041,2]
[310289503,1704463874127,-504.88181717,0.0003041,2]
[310289504,1704463874136,-3419.36,0.0003041,2]
[310289505,1704463874145,-1241.64,0.0003041,2]
[310289506,1704463874155,-500.0,0.0003041,2]
[310289507,1704463874164,-1092.45,0.0003041,2]
[310289508,1704463874173,-234.06586029,0.0003041,2]
[310289509,1704463874182,-2084.07,0.0003041,2]
[310289510,1704463874191,-558.28,0.0003041,2]
[310289511,1704463874200,-500.0,0.0003041,2]
[310289512,1704463874210,-500.0,0.0003041,2]
[310289513,1704463874219,-500.0,0.0003041,2]
[310289514,1704463874229,-500.0,0.0003041,2]
[310289515,1704463874240,-500.0,0.0003041,2]
[310289516,1704463874249,-1946.6,0.0003041,2]
[310289517,1704463874258,-500.0,0.0003041,2]
[310289518,1704463874268,-517.38231531,0.0003041,2]
[310289519,1704463874278,-1013.42,0.0003041,2]
[310289520,1704463874287,-500.0,0.0003041,2]
[310289521,1704463874296,-500.0,0.0003041,2]
[310289522,1704463874305,-500.0,0.0003041,2]
[310289523,1704463874314,-500.0,0.0003041,2]
[310289524,1704463874323,-500.0,0.0003041,2]
[310289525,1704463874333,-500.0,0.0003041,2]
[310289526,1704463874342,-1212.22,0.0003041,2]
[310289527,1704463874352,-500.0,0.0003041,2]
[310289528,1704463874361,-500.0,0.0003041,2]
[310289529,1704463874370,-702.4,0.0003041,2]
[310289530,1704463874380,-2361.2,0.0003041,2]
[310289531,1704463874389,-500.0,0.0003041,2]
[310289532,1704463874399,-1128.19,0.0003041,2]
[310289533,1704463874408,-500.0,0.0003041,2]
[310289534,1704463874417,-500.0,0.0003041,2]
[310289535,1704463874427,-500.0,0.0003041,2]
[310289536,1704463874436,-764.39,0.0003041,2]
[310289537,1704463874447,-500.0,0.0003041,2]
[310289538,1704463874457,-517.07,0.0003041,2]
[310289539,1704463874466,-500.0,0.0003041,2]
[310289540,1704463874475,-1542.41,0.0003041,2]
[310289541,1704463874484,-1440.35,0.0003041,2]
[310289542,1704463874494,-500.0,0.0003041,2]
[310289543,1704463874503,-500.0,0.0003041,2]
[310289544,1704463874514,-500.0,0.0003041,2]
[310289545,1704463874524,-715.0,0.0003041,2]
[310289546,1704463874534,-500.0,0.0003041,2]
[310289547,1704463874543,-531.93634962,0.0003041,2]
[310289548,1704463874552,-500.0,0.0003041,2]
[310289549,1704463874562,-500.0,0.0003041,2]
[310289550,1704463874571,-2358.36,0.0003041,2]
[310289551,1704463874580,-500.0,0.0003041,2]
[310289552,1704463874589,-1017.07,0.0003041,2]
[310289553,1704463874604,-500.0,0.0003041,2]
[310289554,1704463874613,-5040.24,0.0003041,2]
[310289555,1704463874623,-500.0,0.0003041,2]
[310289556,1704463874632,-1054.48,0.0003041,2]
[310289557,1704463874642,-500.0,0.0003041,2]
[310289558,1704463874652,-500.0,0.0003041,2]
[310289559,1704463874662,-500.0,0.0003041,2]
[310289560,1704463874671,-500.0,0.0003041,2]
[310289561,1704463874686,-500.0,0.0003041,2]
[310289562,1704463874697,-915.19,0.0003041,2]
[310289563,1704463874706,-8316.18,0.0003041,2]
[310289564,1704463874716,-500.0,0.0003041,2]
[310289565,1704463874725,-500.0,0.0003041,2]
[310289566,1704463874735,-1182.97,0.0003041,2]
[310289567,1704463874744,-5436.81,0.0003041,2]
[310289568,1704463874754,-500.0,0.0003041,2]
[310289569,1704463874763,-500.0,0.0003041,2]
[310289570,1704463874774,-500.0,0.0003041,2]
[310289571,1704463874784,-826.79,0.0003041,2]
[310289572,1704463874793,-500.0,0.0003041,2]
[310289573,1704463874803,-500.0,0.0003041,2]
[310289574,1704463874813,-709.6,0.0003041,2]
[310289575,1704463874822,-500.0,0.0003041,2]
[310289576,1704463874831,-500.0,0.0003041,2]
[310289577,1704463874841,-526.58,0.0003041,2]
[310289578,1704463874850,-574.8,0.0003041,2]
[310289579,1704463874859,-856.02,0.0003041,2]
[310289580,1704463874869,-2833.48,0.0003041,2]
[310289581,1704463874878,-557.01,0.0003041,2]
[310289582,1704463874887,-701.77,0.0003041,2]
[310289583,1704463874897,-500.0,0.0003041,2]
[310289584,1704463874905,-768.26316062,0.0003041,2]
[310289585,1704463874914,-720.5,0.0003041,2]
[310289586,1704463874923,-161.671926,0.0003041,7]
[310289587,1704463874934,-254.147906,0.0003041,7]
[310289588,1704463874944,-161.3155,0.0003041,7]
[310289589,1704463874953,-161.3155,0.0003041,7]
[310289590,1704463874962,-163.4,0.0003041,7]
[310289591,1704463874972,-163.4,0.0003041,7]
[310289592,1704463874981,-151.0,0.0003041,7]
[310289593,1704463874991,-151.0,0.0003041,7]
[310289594,1704463875000,-151.0,0.0003041,7]
[310289595,1704463875010,-151.0,0.0003041,7]
[310289596,1704463875020,-151.0,0.0003041,7]
[310289597,1704463875029,-151.0,0.0003041,7]
[310289598,1704463875039,-151.0,0.0003041,7]
[310289599,1704463875048,-151.0,0.0003041,7]
[310289600,1704463875058,-151.0,0.0003041,7]
[310289601,1704463875067,-151.0,0.0003041,7]
[310289602,1704463875076,-10000.0,0.0003041,7]
[310289603,1704463875085,-10000.0,0.0003041,7]
[310289604,1704463875095,-10000.0,0.0003041,7]
[310289605,1704463875104,-10000.0,0.0003041,7]
[310289606,1704463875114,-10000.0,0.0003041,7]
[310289607,1704463875123,-10000.0,0.0003041,7]
[310289608,1704463875132,-4473.142131,0.0003041,7]
[310289609,1704463875142,-4473.142131,0.0003041,7]
[310289610,1704463875151,-4473.142131,0.0003041,7]
[310289611,1704463875160,-4473.142131,0.0003041,7]
[310289612,1704463875170,-185.208853,0.0003041,7]
[310289613,1704463875179,-185.208853,0.0003041,7]
[310289614,1704463875188,-185.208853,0.0003041,7]
[310289615,1704463875197,-185.208853,0.0003041,7]
[310289616,1704463875206,-759.511757,0.0003041,7]
[310289617,1704463875216,-759.511757,0.0003041,7]
[310289618,1704463875226,-759.511757,0.0003041,7]
[310289619,1704463875235,-759.511757,0.0003041,7]
[310289620,1704463875244,-670.734672,0.0003041,7]
[310289621,1704463875253,-670.734672,0.0003041,7]
[310289622,1704463875262,-670.734672,0.0003041,7]
[310289623,1704463875273,-670.734672,0.0003041,7]
[310289624,1704463875281,-151.0,0.0003041,7]
[310289625,1704463875290,-151.0,0.0003041,7]
[310289626,1704463875299,-151.0,0.0003041,7]
[310289627,1704463875309,-151.0,0.0003041,7]
[310289628,1704463875319,-236.259597,0.0003041,7]
[310289629,1704463875328,-236.259597,0.0003041,7]
[310289630,1704463875338,-236.259597,0.0003041,7]
[310289631,1704463875347,-236.259597,0.0003041,7]
[310289632,1704463875358,-719.83383,0.0003041,7]
[310289633,1704463875367,-719.83383,0.0003041,7]
[310289634,1704463875376,-719.83383,0.0003041,7]
[310289635,1704463875385,-719.83383,0.0003041,7]
[310289636,1704463875395,-351.608158,0.0003041,7]
[310289637,1704463875404,-351.608158,0.0003041,7]
[310289638,1704463875414,-351.608158,0.0003041,7]
[310289639,1704463875423,-351.608158,0.0003041,7]
[310289640,1704463875433,-441.69152,0.0003041,7]
[310289641,1704463875443,-441.69152,0.0003041,7]
[310289642,1704463875453,-441.69152,0.0003041,7]
[310289643,1704463875462,-441.69152,0.0003041,7]
[310289644,1704463875472,-151.0,0.00030417,7]
[310289645,1704463875481,-151.0,0.00030417,7]
[310289646,1704463875491,-151.0,0.00030417,7]
[310289647,1704463875501,-151.0,0.00030417,7]
[310289648,1704463875510,-161.3155,0.00030417,7]
[310289649,1704463875520,-161.3155,0.00030417,7]
[310289650,1704463875529,-163.4,0.00030417,7]
[310289651,1704463875539,-163.4,0.00030417,7]
[310289652,1704463875548,-90500.45371572,0.00030417,2]
[310289653,1704463875558,-301.66,0.00030575,2]
[310289654,1704463875567,-189.1826,0.0003058,2]
[310289655,1704463875576,-1711.03240528,0.00030584,2]
[310289656,1704463875586,-174.41039487,0.00030584,2]
[310289657,1704463875596,-189.46433526,0.00030584,2]
[310289658,1704463875605,-365.60499966,0.00030681,2]
[310289659,1704463875615,-500.0,0.00030683,2]
[310289660,1704463875624,-151.0,0.00030684,7]
[310289661,1704463875634,-151.0,0.00030684,7]
[310289662,1704463875644,-151.0,0.00030684,7]
[310289663,1704463875653,-166.488915,0.00030684,7]
[310289664,1704463875662,-500.0,0.00030684,2]
[310289665,1704463875672,-500.0,0.00030684,2]
[310289666,1704463875681,-527.42126712,0.00030684,2]
[310289667,1704463875690,-522.08045158,0.00030684,2]
[310289668,1704463875700,-500.0,0.00030684,2]
[310289669,1704463875709,-500.0,0.00030684,2]
[310289670,1704463875717,-500.0,0.00030684,2]
[310289671,1704463875727,-500.0,0.00030684,2]
[310289672,1704463875736,-500.0,0.00030684,2]
[310289673,1704463875745,-578.99,0.00030684,2]
[310289674,1704463875755,-570.77,0.00030684,2]
[310289675,1704463875764,-500.0,0.00030684,2]
[310289676,1704463875775,-500.0,0.00030684,2]
[310289677,1704463875784,-500.0,0.00030684,2]
[310289678,1704463875794,-485.74192693,0.00030684,2]
[310289679,1704463875803,-500.0,0.00030684,2]
[310289680,1704463875812,-500.0,0.00030684,2]
[310289681,1704463875822,-500.0,0.00030684,2]
[310289682,1704463875831,-500.0,0.00030684,2]
[310289683,1704463875841,-500.0,0.00030684,2]
[310289684,1704463875850,-500.0,0.00030684,2]
[310289685,1704463875859,-500.0,0.00030684,2]
[310289686,1704463875869,-500.0,0.00030684,2]
[310289687,1704463875878,-500.0,0.00030684,2]
[310289688,1704463875887,-500.0,0.00030684,2]
[310289689,1704463875896,-500.0,0.00030684,2]
[310289690,1704463875905,-964.18,0.00030684,2]
[310289691,1704463875915,-500.0,0.00030684,2]
[310289692,1704463875924,-500.0,0.00030684,2]
[310289693,1704463875934,-500.0,0.00030684,2]
[310289694,1704463875944,-500.0,0.00030684,2]
[310289695,1704463875953,-517.94875726,0.00030684,10]
[310289696,1704463875963,-500.0,0.00030684,2]
[310289697,1704463875973,-500.0,0.00030684,2]
[310289698,1704463875982,-505.29358535,0.00030684,2]
[310289699,1704463875991,-500.0,0.00030684,2]
[310289700,1704463876001,-500.0,0.00030684,2]
[310289701,1704463876010,-500.0,0.00030684,2]
[310289702,1704463876022,-500.0,0.00030684,2]
[310289703,1704463876032,-500.0,0.00030684,2]
[310289704,1704463876041,-500.0,0.00030684,2]
[310289705,1704463876051,-500.0,0.00030684,2]
[310289706,1704463876060,-500.0,0.00030684,2]
[310289707,1704463876069,-500.0,0.00030684,2]
[310289708,1704463876078,-500.0,0.00030684,2]
[310289709,1704463876088,-500.0,0.00030684,2]
[310289710,1704463876098,-500.0,0.00030684,2]
[310289711,1704463876109,-500.0,0.00030684,2]
[310289712,1704463876119,-500.0,0.00030684,2]
[310289713,1704463876128,-500.0,0.00030684,2]
[310289714,1704463876138,-500.0,0.00030684,2]
[310289715,1704463876148,-500.0,0.00030684,2]
[310289716,1704463876158,-500.0,0.00030684,2]
[310289717,1704463876167,-500.0,0.00030684,2]
[310289718,1704463876176,-500.0,0.00030684,2]
[310289719,1704463876186,-500.0,0.00030684,2]
[310289720,1704463876196,-500.0,0.00030684,2]
[310289721,1704463876205,-500.0,0.00030684,2]
[310289722,1704463876216,-500.0,0.00030684,2]
[310289723,1704463876225,-500.0,0.00030684,2]
[310289724,1704463876234,-500.0,0.00030684,2]
[310289725,1704463876242,-500.0,0.00030684,2]
[310289726,1704463876252,-500.0,0.00030684,2]
[310289727,1704463876262,-516.73754581,0.00030684,2]
[310289728,1704463876272,-198.96658811,0.00030684,2]
[310289729,1704463876282,-500.0,0.00030684,2]
[310289730,1704463876291,-500.0,0.00030684,2]
[310289731,1704463876301,-500.0,0.00030684,2]
[310289732,1704463876310,-500.0,0.00030684,2]
[310289733,1704463876320,-500.0,0.00030684,2]
[310289734,1704463876329,-500.0,0.00030684,2]
[310289735,1704463876339,-500.0,0.00030684,2]
[310289736,1704463876350,-500.0,0.00030684,2]
[310289737,1704463876363,-500.0,0.00030684,2]
[310289738,1704463876372,-500.0,0.00030684,2]
[310289739,1704463876381,-500.0,0.00030684,2]
[310289740,1704463876391,-500.0,0.00030684,2]
[310289741,1704463876403,-500.0,0.00030684,2]
[310289742,1704463876416,-500.0,0.00030684,2]
[310289743,1704463876426,-500.0,0.00030684,2]
[310289744,1704463876436,-776.92,0.00030684,2]
[310289745,1704463876448,-500.0,0.00030684,2]
[310289746,1704463876458,-500.0,0.00030684,2]
[310289747,1704463876469,-500.0,0.00030684,2]
[310289748,1704463876477,-462.86291197,0.00030684,2]
[310289749,1704463876486,-500.0,0.00030684,2]
[310289750,1704463876496,-500.0,0.00030684,2]
[310289751,1704463876506,-500.0,0.00030684,2]
[310289752,1704463876515,-563.14230134,0.00030684,2]
[310289753,1704463876526,-500.0,0.00030684,2]
[310289754,1704463876536,-500.0,0.00030684,2]
[310289755,1704463876545,-500.0,0.00030684,2]
[310289756,1704463876555,-500.0,0.00030684,2]
[310289757,1704463876564,-500.0,0.00030684,2]
[310289758,1704463876574,-500.0,0.00030684,2]
[310289759,1704463876583,-500.0,0.00030684,2]
[310289760,1704463876593,-500.0,0.00030684,2]
[310289761,1704463876603,-509.72713278,0.00030684,2]
[310289762,1704463876616,-500.0,0.00030684,2]
[310289763,1704463876626,-500.0,0.00030684,2]
[310289764,1704463876635,-754.78,0.00030684,2]
[310289765,1704463876645,-500.0,0.00030684,2]
[310289766,1704463876657,-608.57,0.00030684,2]
[310289767,1704463876666,-500.0,0.00030684,2]
[310289768,1704463876676,-500.0,0.00030684,2]
[310289769,1704463876686,-500.0,0.00030684,2]
[310289770,1704463876696,-500.0,0.00030684,2]
[310289771,1704463876706,-500.0,0.00030684,2]
[310289772,1704463876716,-573.21115483,0.00030684,2]
[310289773,1704463876725,-500.0,0.00030684,2]
[310289774,1704463876735,-500.0,0.00030684,2]
[310289775,1704463876744,-500.0,0.00030684,2]
[310289776,1704463876754,-500.0,0.00030684,2]
[310289777,1704463876763,-500.0,0.00030684,2]
[310289778,1704463876775,-500.0,0.00030684,2]
[310289779,1704463876785,-574.49,0.00030684,2]
[310289780,1704463876794,-378.93261285,0.00030684,2]
[310289781,1704463876804,-500.0,0.00030684,2]
[310289782,1704463876814,-500.0,0.00030684,2]
[310289783,1704463876825,-500.0,0.00030684,2]
[310289784,1704463876835,-542.05700556,0.00030684,2]
[310289785,1704463876844,-500.0,0.00030684,2]
[310289786,1704463876855,-500.0,0.00030684,2]
[310289787,1704463876865,-597.18,0.00030684,2]
[310289788,1704463876874,-500.0,0.00030684,2]
[310289789,1704463876885,-500.0,0.00030684,2]
[310289790,1704463876894,-500.0,0.00030684,2]
[310289791,1704463876904,-500.0,0.00030684,2]
[310289792,1704463876914,-500.0,0.00030684,2]
[310289793,1704463877135,-500.0,0.00030684,2]
[310289794,1704463877147,-500.0,0.00030684,2]
[310289795,1704463877157,-1000.0,0.00030684,2]
[310289796,1704463877166,-500.0,0.00030684,2]
[310289797,1704463877177,-535.87,0.00030684,2]
[310289798,1704463877187,-500.0,0.00030684,2]
[310289799,1704463877197,-500.0,0.00030684,2]
[310289800,1704463877206,-500.0,0.00030684,2]
[310289801,1704463877216,-500.0,0.00030684,2]
[310289802,1704463877226,-500.0,0.00030684,2]
[310289803,1704463877235,-520.5046495,0.00030684,2]
[310289804,1704463877245,-500.0,0.00030684,2]
[310289805,1704463877254,-500.0,0.00030684,2]
[310289806,1704463877264,-500.0,0.00030684,2]
[310289807,1704463877279,-500.0,0.00030684,2]
[310289808,1704463877289,-541.37757505,0.00030684,2]
[310289809,1704463877298,-500.0,0.00030684,2]
[310289810,1704463877308,-500.0,0.00030684,2]
[310289811,1704463877318,-500.0,0.00030684,2]
[310289812,1704463877328,-500.0,0.00030684,2]
[310289813,1704463877338,-500.0,0.00030684,2]
[310289814,1704463877348,-500.0,0.00030684,2]
[310289815,1704463877358,-539.81304127,0.00030684,2]
[310289816,1704463877368,-500.0,0.00030684,2]
[310289817,1704463877378,-500.0,0.00030684,2]
[310289818,1704463877388,-500.0,0.00030684,2]
[310289819,1704463877399,-500.0,0.00030684,2]
[310289820,1704463877409,-500.0,0.00030684,2]
[310289821,1704463877419,-500.0,0.00030684,2]
[310289822,1704463877429,-500.0,0.00030684,2]
[310289823,1704463877440,-500.0,0.00030684,2]
[310289824,1704463877450,-847.71,0.00030684,2]
[310289825,1704463877460,-500.0,0.00030684,2]
[310289826,1704463877470,-500.0,0.00030684,2]
[310289827,1704463877480,-500.0,0.00030684,2]
[310289828,1704463877490,-524.76968755,0.00030684,2]
[310289829,1704463877500,-503.75479229,0.00030684,2]
[310289830,1704463877509,-500.0,0.00030684,2]
[310289831,1704463877520,-563.42351579,0.00030684,2]
[310289832,1704463877530,-442.45449506,0.00030684,2]
[310289833,1704463877540,-500.0,0.00030684,2]
[310289834,1704463877550,-500.0,0.00030684,2]
[310289835,1704463877560,-482.29971131,0.00030684,2]
[310289836,1704463877570,-500.0,0.00030684,2]
[310289837,1704463877580,-500.0,0.00030684,2]
[310289838,1704463877590,-500.0,0.00030684,2]
[310289839,1704463877600,-519.53920783,0.00030684,2]
[310289840,1704463877610,-500.0,0.00030684,2]
[310289841,1704463877619,-500.0,0.00030684,2]
[310289842,1704463877628,-500.0,0.00030684,2]
[310289843,1704463877638,-500.0,0.00030684,2]
[310289844,1704463877648,-500.0,0.00030684,2]
[310289845,1704463877658,-500.0,0.00030684,2]
[310289846,1704463877667,-500.0,0.00030684,2]
[310289847,1704463877677,-500.0,0.00030684,2]
[310289848,1704463877687,-500.0,0.00030684,2]
[310289849,1704463877697,-939.06,0.00030684,2]
[310289850,1704463877706,-500.0,0.00030684,2]
[310289851,1704463877716,-500.0,0.00030684,2]
[310289852,1704463877727,-500.0,0.00030684,2]
[310289853,1704463877737,-500.0,0.00030684,2]
[310289854,1704463877747,-642.36453886,0.00030684,2]
[310289855,1704463877756,-500.0,0.00030684,2]
[310289856,1704463877765,-500.0,0.00030684,2]
[310289857,1704463877776,-500.0,0.00030684,2]
[310289858,1704463877787,-500.0,0.00030684,2]
[310289859,1704463877796,-500.0,0.00030684,2]
[310289860,1704463877806,-500.0,0.00030684,2]
[310289861,1704463877817,-617.42,0.00030684,2]
[310289862,1704463877828,-500.0,0.00030684,2]
[310289863,1704463877839,-500.0,0.00030684,2]
[310289864,1704463877851,-500.0,0.00030684,2]
[310289865,1704463877862,-500.0,0.00030684,2]
[310289866,1704463877872,-500.0,0.00030684,2]
[310289867,1704463877883,-500.0,0.00030684,2]
[310289868,1704463877893,-339.34985811,0.00030684,2]
[310289869,1704463877903,-500.0,0.00030684,2]
[310289870,1704463877912,-763.35,0.00030684,2]
[310289871,1704463877922,-500.0,0.00030684,2]
[310289872,1704463877933,-500.0,0.00030684,2]
[310289873,1704463877943,-581.06,0.00030684,2]
[310289874,1704463877953,-500.0,0.00030684,2]
[310289875,1704463877963,-500.0,0.00030684,2]
[310289876,1704463877973,-533.25,0.00030684,2]
[310289877,1704463877983,-500.0,0.00030684,2]
[310289878,1704463877992,-500.0,0.00030684,2]
[310289879,1704463878002,-500.0,0.00030684,2]
[310289880,1704463878013,-1032.57,0.00030684,2]
[310289881,1704463878024,-500.0,0.00030684,2]
[310289882,1704463878034,-668.81,0.00030684,2]
[310289883,1704463878044,-500.0,0.00030684,2]
[310289884,1704463878053,-897.42,0.00030684,2]
[310289885,1704463878063,-500.0,0.00030684,2]
[310289886,1704463878073,-500.0,0.00030684,2]
[310289887,1704463878083,-610.9,0.00030684,2]
[310289888,1704463878093,-541.0280946,0.00030684,2]
[310289889,1704463878103,-542.23,0.00030684,2]
[310289890,1704463878112,-493.02741681,0.00030684,2]
[310289891,1704463878122,-500.0,0.00030684,2]
[310289892,1704463878132,-500.0,0.00030684,2]
[310289893,1704463878141,-500.0,0.00030684,2]
[310289894,1704463878151,-500.0,0.00030684,2]
[310289895,1704463878160,-500.0,0.00030684,2]
[310289896,1704463878170,-500.0,0.00030684,2]
[310289897,1704463878180,-977.28,0.00030684,2]
[310289898,1704463878190,-500.0,0.00030684,2]
[310289899,1704463878198,-500.0,0.00030684,2]
[310289900,1704463878208,-500.0,0.00030684,2]
[310289901,1704463878218,-500.0,0.00030684,2]
[310289902,1704463878228,-294.10129151,0.00030684,2]
[310289903,1704463878237,-500.0,0.00030684,2]
[310289904,1704463878247,-564.72,0.00030684,2]
[310289905,1704463878256,-500.0,0.00030684,2]
[310289906,1704463878266,-500.0,0.00030684,2]
[310289907,1704463878277,-623.13,0.00030684,2]
[310289908,1704463878287,-500.0,0.00030684,2]
[310289909,1704463878297,-500.0,0.00030684,2]
[310289910,1704463878307,-500.0,0.00030684,2]
[310289911,1704463878317,-500.0,0.00030684,2]
[310289912,1704463878327,-660.13,0.00030684,2]
[310289913,1704463878337,-500.0,0.00030684,2]
[310289914,1704463878347,-500.0,0.00030684,2]
[310289915,1704463878357,-500.0,0.00030684,2]
[310289916,1704463878366,-500.0,0.00030684,2]
[310289917,1704463878377,-1107.9,0.00030684,2]
[310289918,1704463878386,-500.0,0.00030684,2]
[310289919,1704463878396,-500.0,0.00030684,2]
[310289920,1704463878405,-500.0,0.00030684,2]
[310289921,1704463878414,-620.39127327,0.00030684,2]
[310289922,1704463878424,-500.0,0.00030684,2]
[310289923,1704463878434,-163.48507522,0.00030684,2]
[310289924,1704463878444,-500.0,0.00030684,2]
[310289925,1704463878454,-396.26461321,0.00030684,2]
[310289926,1704463878464,-500.0,0.00030684,2]
[310289927,1704463878473,-500.0,0.00030684,2]
[310289928,1704463878482,-500.0,0.00030684,2]
[310289929,1704463878492,-500.0,0.00030684,2]
[310289930,1704463878502,-500.0,0.00030684,2]
[310289931,1704463878512,-534.02,0.00030684,2]
[310289932,1704463878524,-500.0,0.00030684,2]
[310289933,1704463878535,-1001.59,0.00030684,2]
[310289934,1704463878545,-535.96317007,0.00030684,2]
[310289935,1704463878555,-500.0,0.00030684,2]
[310289936,1704463878565,-500.0,0.00030684,2]
[310289937,1704463878574,-500.0,0.00030684,2]
[310289938,1704463878583,-203.63190927,0.00030684,2]
[310289939,1704463878593,-500.0,0.00030684,2]
[310289940,1704463878607,-500.0,0.00030684,2]
[310289941,1704463878617,-500.0,0.00030684,2]
[310289942,1704463878627,-500.0,0.00030684,2]
[310289943,1704463878637,-500.0,0.00030684,2]
[310289944,1704463878648,-577.73,0.00030684,2]
[310289945,1704463878657,-500.0,0.00030684,2]
[310289946,1704463878668,-500.0,0.00030684,2]
[310289947,1704463878679,-527.1794923,0.00030684,2]
[310289948,1704463878689,-527.23787193,0.00030684,2]
[310289949,1704463878699,-500.0,0.00030684,2]
[310289950,1704463878708,-500.0,0.00030684,2]
[310289951,1704463878718,-515.35,0.00030684,2]
[310289952,1704463878728,-500.0,0.00030684,2]
[310289953,1704463878737,-500.0,0.00030684,2]
[310289954,1704463878747,-500.0,0.00030684,2]
[310289955,1704463878758,-500.0,0.00030684,2]